bitfinex/quotes_BTCUSD_20211001
["timestamp","ask_amount","ask_price","bid_price","bid_amount"]
[1633105038346,0.12995023,47386.0,47382.0,0.17747703]
[1633105038545,0.12995023,47386.0,47385.0,0.00128567]
[1633105038746,0.12995023,47386.0,47385.0,0.24064332]
[1633105038945,0.13003464,47386.0,47385.0,0.24064332]
[1633105039547,0.13003464,47386.0,47385.0,0.00128567]
[1633105039748,0.13003464,47386.0,47383.0,0.42201435]
[1633105039749,0.01176827,47385.0,47383.0,0.42201435]
[1633105039951,0.22613487,47384.0,47383.0,0.211003]
[1633105040148,0.2256653,47384.0,47383.0,0.211003]
[1633105040547,0.5070876,47384.0,47383.0,0.211003]
[1633105040750,0.30067968,47384.0,47383.0,0.211003]
[1633105041548,0.22573251,47384.0,47383.0,0.211003]
[1633105041949,0.01872751,47384.0,47383.0,0.45516491]
[1633105042750,0.01872751,47384.0,47383.0,0.211003]
[1633105043850,0.01872751,47384.0,47383.0,0.87225832]
[1633105044257,0.01872751,47384.0,47383.0,1.09545832]
[1633105044447,0.01872751,47384.0,47383.0,1.20263859]
[1633105044716,0.01872751,47384.0,47383.0,0.87225832]
[1633105045449,0.01872751,47384.0,47383.0,0.88065832]
[1633105046450,0.00012751,47384.0,47383.0,1.09822032]
[1633105046652,0.0202,47390.0,47383.0,1.09822032]
[1633105046653,0.2014,47396.0,47384.0,0.817562]
[1633105046851,0.0016,47392.0,47389.0,0.00123024]
[1633105047052,0.0002,47394.0,47390.0,0.20182452]
[1633105047250,0.07361168,47393.0,47390.0,0.20182452]
[1633105047453,0.207005,47392.0,47390.0,0.20182452]
[1633105047653,0.207005,47392.0,47390.0,0.16802532]
[1633105048054,0.207005,47392.0,47388.0,0.21095402]
[1633105048251,0.207005,47392.0,47391.0,0.00121314]
[1633105048455,0.13602642,47392.0,47391.0,0.00121314]
[1633105049055,0.43025989,47392.0,47391.0,0.00121314]
[1633105049455,0.43025989,47392.0,47388.0,0.21095402]
[1633105049654,0.06096067,47390.0,47388.0,0.21095402]
[1633105049854,6.029e-05,47389.0,47388.0,0.21095402]
[1633105050056,0.29376282,47389.0,47388.0,0.21095402]
[1633105050459,0.29376353,47389.0,47388.0,0.21095402]
[1633105050655,6.029e-05,47389.0,47388.0,0.21095402]
[1633105051055,0.00059016,47389.0,47388.0,0.21095402]
[1633105051255,0.44901392,47389.0,47383.0,0.0084]
[1633105051454,0.06100773,47384.0,47383.0,0.0084]
[1633105051655,0.47178687,47384.0,47383.0,0.0084]
[1633105051854,0.76552775,47384.0,47383.0,0.0084]
[1633105053056,0.98896507,47384.0,47383.0,0.0084]
[1633105053452,0.76552775,47384.0,47383.0,0.0084]
[1633105054455,0.62947775,47384.0,47383.0,0.0084]
[1633105054855,0.85177795,47384.0,47383.0,0.0084]
[1633105055057,0.98834529,47384.0,47369.0,0.9478]
[1633105055258,0.06102336,47379.0,47369.0,0.9478]
[1633105055458,0.25459373,47378.0,47369.0,0.9478]
[1633105055656,0.25459373,47378.0,47367.0,1.056]
[1633105055855,0.34390218,47376.0,47367.0,1.056]
[1633105056059,0.57278205,47375.0,47367.0,1.056]
[1633105056260,0.25612405,47375.0,47365.0,0.21106564]
[1633105056560,0.25612405,47375.0,47368.0,0.211081]
[1633105056756,0.25612405,47375.0,47373.0,0.2196438]
[1633105056957,0.0186,47375.0,47373.0,0.2196438]
[1633105060561,0.31268437,47378.0,47373.0,0.2196438]
[1633105060760,0.0186,47377.0,47373.0,0.2196438]
[1633105060960,0.0004575,47376.0,47373.0,0.2196438]
[1633105061159,0.0186,47375.0,47373.0,0.2196438]
[1633105061360,0.0186,47374.0,47373.0,0.2196438]
[1633105061762,0.0186,47374.0,47373.0,0.30129723]
[1633105062362,0.0186,47374.0,47373.0,0.51236123]
[1633105062558,0.0186,47374.0,47373.0,0.2196438]
[1633105063558,0.0186,47374.0,47373.0,0.31291915]
[1633105064359,0.0186,47374.0,47373.0,0.2196438]
[1633105070161,0.0186,47374.0,47373.0,0.15844577]
[1633105077033,0.0186,47374.0,47365.0,0.316646]
[1633105077431,0.0186,47374.0,47372.0,0.21104276]
[1633105077831,0.33278748,47374.0,47372.0,0.21104276]
[1633105078033,0.13605,47373.0,47372.0,0.21104276]
[1633105078234,0.15465,47373.0,47372.0,0.21104276]
[1633105078433,0.0186,47373.0,47372.0,0.21104276]
[1633105079435,0.0186,47373.0,47366.0,0.211096]
[1633105079436,0.01983012,47373.0,47360.0,0.00129441]
[1633105079635,0.00128472,47365.0,47357.0,0.01919306]
[1633105079833,0.0186,47364.0,47357.0,0.01919306]
[1633105080233,0.0186,47364.0,47357.0,0.20032593]
[1633105080234,0.34431189,47358.0,47357.0,0.20032593]
[1633105080631,0.0186,47360.0,47357.0,0.20055519]
[1633105081034,0.0186,47360.0,47359.0,0.00020512]
[1633105082837,0.24879971,47360.0,47359.0,0.00020512]
[1633105083236,0.38484971,47360.0,47359.0,0.00020512]
[1633105083435,0.36653329,47360.0,47359.0,0.00020512]
[1633105083835,0.23048329,47360.0,47359.0,0.00020512]
[1633105084040,0.23173938,47360.0,47359.0,0.00020512]
[1633105085038,0.31350079,47360.0,47359.0,0.00020512]
[1633105085241,0.31350079,47360.0,47359.0,1.68526114]
[1633105085639,0.23173938,47360.0,47359.0,1.68526114]
[1633105090043,0.23173938,47360.0,47359.0,1.87726114]
[1633105090243,0.23297095,47360.0,47359.0,1.87726114]
[1633105090446,0.2410784,47360.0,47359.0,1.87726114]
[1633105091444,0.01985609,47360.0,47359.0,1.87726114]
[1633105091645,0.23300151,47360.0,47359.0,1.87726114]
[1633105092046,0.01985609,47360.0,47359.0,1.87726114]
[1633105092447,0.23703545,47360.0,47359.0,1.87726114]
[1633105092846,0.01985609,47360.0,47359.0,1.87726114]
[1633105093247,0.01985609,47360.0,47359.0,1.87733374]
[1633105094450,0.01985609,47360.0,47359.0,2.06562595]
[1633105094647,0.01985609,47360.0,47359.0,2.06555335]
[1633105095249,0.01985609,47360.0,47359.0,0.19220512]
[1633105095250,0.51985609,47360.0,47359.0,0.19220512]
[1633105095450,0.65590609,47360.0,47359.0,0.19220512]
[1633105097252,0.65590609,47360.0,47359.0,0.19227772]
[1633105097653,0.51985609,47360.0,47359.0,0.19227772]
[1633105098653,0.5186,47360.0,47359.0,0.19227772]
[1633105099557,0.5186,47360.0,47359.0,0.19220512]
[1633105099956,0.5186,47360.0,47359.0,0.19227772]
[1633105100156,0.65465,47360.0,47359.0,0.19227772]
[1633105100357,0.65465,47360.0,47359.0,0.19220512]
[1633105100956,0.5186,47360.0,47359.0,0.38843543]
[1633105102167,0.5186,47360.0,47359.0,0.38850803]
[1633105103158,0.5186,47360.0,47359.0,0.38843543]
[1633105103362,0.5186,47360.0,47359.0,0.38850803]
[1633105103561,0.5186,47360.0,47359.0,0.19227772]
[1633105103961,0.5136,47360.0,47359.0,0.19220512]
[1633105104360,0.64965,47360.0,47359.0,0.19220512]
[1633105106865,0.91412115,47360.0,47359.0,0.19220512]
[1633105107266,0.91541087,47360.0,47359.0,0.19220512]
[1633105108065,0.91541087,47360.0,47359.0,0.04525384]
[1633105108262,0.91586837,47360.0,47359.0,0.04525384]
[1633105108666,0.91586837,47360.0,47357.0,0.01919306]
[1633105108865,0.13731322,47358.0,47357.0,0.01919306]
[1633105109065,0.70188982,47358.0,47357.0,0.01919306]
[1633105109264,1.16748982,47358.0,47357.0,0.01919306]
[1633105109868,1.4614305,47358.0,47357.0,0.01919306]
[1633105110068,1.4614305,47358.0,47341.0,1.0982]
[1633105110069,0.13605,47354.0,47341.0,1.0982]
[1633105110267,0.50128636,47344.0,47341.0,1.0982]
[1633105110465,0.0186,47343.0,47341.0,0.7482]
[1633105110664,0.37255015,47342.0,47335.0,1.17344754]
[1633105110865,0.0186,47341.0,47335.0,0.00124754]
[1633105111064,0.0186,47341.0,47336.0,0.20713577]
[1633105111263,0.33549,47341.0,47340.0,0.00022934]
[1633105111466,0.58190189,47341.0,47340.0,0.00022934]
[1633105111664,0.62421963,47341.0,47340.0,0.00022934]
[1633105112466,1.06202395,47341.0,47340.0,0.00022934]
[1633105112663,1.06156645,47341.0,47340.0,0.00022934]
[1633105113465,1.06202395,47341.0,47340.0,0.00022934]
[1633105114472,1.31202395,47341.0,47340.0,0.00022934]
[1633105114866,1.06561206,47341.0,47340.0,0.00022934]
[1633105118669,1.06515456,47341.0,47340.0,0.00022934]
[1633105120272,1.06561206,47341.0,47340.0,0.00022934]
[1633105120670,2.18561206,47341.0,47340.0,0.00022934]
[1633105120872,1.06561206,47341.0,47340.0,0.00022934]
[1633105122271,1.06515456,47341.0,47340.0,0.00022934]
[1633105122473,1.06561206,47341.0,47340.0,0.00022934]
[1633105122670,1.06515456,47341.0,47340.0,0.00022934]
[1633105123674,1.06561206,47341.0,47340.0,0.00022934]
[1633105123874,1.06515456,47341.0,47340.0,0.00022934]
[1633105124075,1.06561206,47341.0,47340.0,0.00022934]
[1633105124274,1.06515456,47341.0,47340.0,0.00022934]
[1633105124673,1.06561206,47341.0,47340.0,0.00022934]
[1633105124874,2.18561206,47341.0,47340.0,0.00022934]
[1633105127075,2.38561206,47341.0,47340.0,0.00022934]
[1633105128079,2.68561206,47341.0,47340.0,0.00022934]
[1633105128476,1.06515456,47341.0,47340.0,0.00022934]
[1633105128675,1.26515456,47341.0,47340.0,0.00022934]
[1633105129274,1.26561206,47341.0,47340.0,0.00022934]
[1633105129474,2.38561206,47341.0,47340.0,0.00022934]
[1633105131180,0.94696774,47341.0,47340.0,0.00022934]
[1633105131376,0.25,47341.0,47340.0,0.00151565]
[1633105131575,0.211282,47343.0,47340.0,0.00158825]
[1633105131776,0.5,47342.0,47340.0,0.00022934]
[1633105131976,0.816898,47342.0,47337.0,0.07437204]
[1633105132375,1.17637201,47342.0,47337.0,0.07437204]
[1633105132975,0.85947401,47342.0,47337.0,0.07437204]
[1633105133179,0.85947401,47342.0,47335.0,0.00130532]
[1633105133377,1.07346065,47342.0,47335.0,0.00123272]
[1633105133579,0.06091774,47341.0,47335.0,0.00123272]
[1633105133776,0.06212458,47341.0,47335.0,0.00123272]
[1633105133976,0.06212458,47341.0,47340.0,0.00022934]
[1633105134179,0.49817458,47341.0,47340.0,0.00022934]
[1633105134577,0.71043057,47341.0,47340.0,0.00022934]
[1633105135784,1.13303757,47341.0,47340.0,0.00022934]
[1633105136379,0.92123908,47341.0,47340.0,0.00022934]
[1633105136578,0.92078158,47341.0,47340.0,0.00022934]
[1633105136778,0.87846384,47341.0,47340.0,0.00022934]
[1633105136978,1.09190877,47341.0,47340.0,0.00022934]
[1633105137182,1.13422651,47341.0,47340.0,0.00022934]
[1633105137380,1.13468401,47341.0,47340.0,0.00022934]
[1633105137581,1.38468401,47341.0,47340.0,0.00022934]
[1633105137780,1.17123908,47341.0,47340.0,0.00022934]
[1633105137980,1.17123908,47341.0,47330.0,15.73456487]
[1633105138183,0.5,47331.0,47330.0,15.73456487]
[1633105138384,0.83557,47331.0,47330.0,15.73456487]
[1633105138583,0.83557,47331.0,47330.0,15.73468561]
[1633105138780,1.06013723,47331.0,47330.0,15.73468561]
[1633105139583,1.10245497,47331.0,47330.0,15.73468561]
[1633105140584,1.10373405,47331.0,47330.0,15.73468561]
[1633105142990,1.10249175,47331.0,47330.0,15.73468561]
[1633105143385,0.87916682,47331.0,47330.0,15.73468561]
[1633105143587,1.09109746,47331.0,47330.0,15.73468561]
[1633105143849,0.87916682,47331.0,47330.0,15.73468561]
[1633105144055,1.10005701,47331.0,47330.0,15.73468561]
[1633105144251,0.87916682,47331.0,47330.0,15.73468561]
[1633105144456,0.5,47339.0,47331.0,0.07941]
[1633105144654,0.0186,47338.0,47335.0,0.09158241]
[1633105144851,0.0186,47338.0,47332.0,0.00133899]
[1633105144852,0.0186,47341.0,47340.0,0.00123106]
[1633105148053,0.0186,47341.0,47340.0,0.19255494]
[1633105148455,0.0186,47341.0,47340.0,0.00123106]
[1633105149656,0.018235,47341.0,47340.0,0.00123106]
[1633105149856,0.018235,47341.0,47339.0,0.21018693]
[1633105150059,0.5,47340.0,47336.0,0.1600944]
[1633105150459,0.711269,47340.0,47336.0,0.1600944]
[1633105151061,0.711269,47340.0,47337.0,0.23004916]
[1633105151259,0.316927,47338.0,47337.0,0.23004916]
[1633105151860,0.711269,47340.0,47337.0,0.23004916]
[1633105152460,0.211269,47340.0,47338.0,0.09877424]
[1633105152859,0.211269,47340.0,47337.0,0.23004916]
[1633105153662,0.211269,47340.0,47338.0,7.26e-05]
[1633105155061,0.211269,47340.0,47337.0,0.23004916]
[1633105159070,0.316911,47339.0,47337.0,0.23004916]
[1633105159670,0.211277,47348.0,47338.0,1.48233737]
[1633105159870,0.04231774,47351.0,47345.0,0.00128397]
[1633105160069,0.5808,47356.0,47346.0,0.40945263]
[1633105160269,0.0186,47359.0,47350.0,0.00124225]
[1633105160270,0.13605,47355.0,47350.0,0.00124225]
[1633105160470,0.5186,47359.0,47358.0,0.21403365]
[1633105160672,0.65465,47359.0,47356.0,0.08502949]
[1633105160870,0.13605,47358.0,47356.0,0.08502949]
[1633105161269,0.13605,47358.0,47356.0,0.21240275]
[1633105161470,0.13605,47358.0,47356.0,0.21116663]
[1633105161670,0.13605,47358.0,47357.0,0.20283901]
[1633105161874,0.50020512,47359.0,47357.0,0.00123932]
[1633105162072,0.13624305,47358.0,47357.0,0.00123932]
[1633105162871,0.13624305,47358.0,47356.0,0.21116663]
[1633105163071,0.13624305,47358.0,47354.0,0.36747009]
[1633105163272,0.3,47364.0,47354.0,0.36747009]
[1633105163273,0.00018099,47357.0,47356.0,0.2232]
[1633105163474,0.06091774,47372.0,47362.0,0.00127862]
[1633105163873,0.00018076,47363.0,47362.0,0.24153978]
[1633105164076,0.00018076,47363.0,47362.0,0.70380078]
[1633105164274,0.00018076,47363.0,47362.0,0.60603981]
[1633105164482,0.00018076,47363.0,47362.0,0.59977133]
[1633105164872,0.00018076,47363.0,47362.0,0.50592]
[1633105165674,0.20739463,47364.0,47362.0,0.50592]
[1633105165874,0.20739463,47364.0,47362.0,0.57883453]
[1633105166075,0.20739463,47364.0,47363.0,0.24239455]
[1633105166276,0.20739463,47364.0,47362.0,0.57883453]
[1633105166875,0.20739463,47364.0,47362.0,0.80219661]
[1633105167674,0.20739463,47364.0,47362.0,0.50592]
[1633105168482,0.20557186,47364.0,47362.0,0.50592]
[1633105168677,0.20557186,47364.0,47363.0,0.07602796]
[1633105169276,0.20557186,47364.0,47363.0,0.32715054]
[1633105169476,0.20557186,47364.0,47363.0,0.07602796]
[1633105169679,0.20557186,47364.0,47363.0,0.31678932]
[1633105170078,0.20557186,47364.0,47363.0,0.07602796]
[1633105171076,0.20557186,47364.0,47362.0,0.69444636]
[1633105171478,0.20312287,47364.0,47362.0,0.48202522]
[1633105171877,0.20312287,47364.0,47362.0,0.42846186]
[1633105172279,0.20312287,47364.0,47362.0,0.66694266]
[1633105173277,0.20312287,47364.0,47362.0,0.18852636]
[1633105173679,0.20312287,47364.0,47359.0,0.23849446]
[1633105173879,0.20312287,47364.0,47356.0,0.23776666]
[1633105174282,0.20312287,47364.0,47357.0,0.38520135]
[1633105174489,0.20312287,47364.0,47357.0,0.30339515]
[1633105174683,0.316769,47363.0,47358.0,0.21275686]
[1633105174885,0.20312287,47364.0,47358.0,0.21275686]
[1633105175281,0.00124167,47363.0,47358.0,0.21275686]
[1633105175482,0.00124167,47363.0,47359.0,0.23891121]
[1633105175683,0.13605,47362.0,47358.0,0.21275686]
[1633105176082,0.13605,47362.0,47358.0,0.52947286]
[1633105176280,0.20312287,47364.0,47358.0,0.21275686]
[1633105177283,0.51987787,47364.0,47358.0,0.21275686]
[1633105177485,0.13605,47363.0,47358.0,0.21275686]
[1633105179282,0.20312287,47364.0,47358.0,0.21275686]
[1633105180283,0.20312287,47364.0,47360.0,1.78622317]
[1633105181684,0.20312287,47364.0,47360.0,1.86391984]
[1633105183285,0.20312287,47364.0,47362.0,0.32204913]
[1633105184087,0.316763,47362.0,47360.0,1.78622317]
[1633105185087,0.20312287,47364.0,47360.0,1.78622317]
[1633105188994,0.316756,47363.0,47360.0,1.78622317]
[1633105189195,0.20312287,47364.0,47360.0,1.78622317]
[1633105189799,0.20312287,47364.0,47361.0,0.00126698]
[1633105190199,0.20312287,47364.0,47362.0,0.2111345]
[1633105192664,0.20312287,47364.0,47360.0,1.72627663]
[1633105193464,0.20312287,47364.0,47363.0,0.000365]
[1633105193664,0.51987087,47364.0,47363.0,0.000365]
[1633105194465,0.81987087,47364.0,47363.0,0.000365]
[1633105194867,0.51987087,47364.0,47363.0,0.000365]
[1633105195070,0.20312287,47364.0,47363.0,0.000365]
[1633105196270,0.50312287,47364.0,47363.0,0.000365]
[1633105201376,0.20312287,47364.0,47363.0,0.48298063]
[1633105201571,0.20312287,47364.0,47363.0,0.75938623]
[1633105201872,0.20312287,47364.0,47363.0,0.97679723]
[1633105202270,0.20312287,47364.0,47363.0,0.586566]
[1633105202870,0.20312287,47364.0,47363.0,0.440976]
[1633105208679,0.20312287,47364.0,47363.0,0.217776]
[1633105211887,0.42161547,47364.0,47363.0,0.000365]
[1633105212085,0.33917287,47364.0,47363.0,0.000365]
[1633105212287,0.33970294,47364.0,47363.0,0.000365]
[1633105212686,0.88540581,47364.0,47363.0,0.000365]
[1633105212885,1.27277353,47364.0,47363.0,0.000365]
[1633105213086,1.61509127,47364.0,47363.0,0.000365]
[1633105213288,1.61509127,47364.0,47345.0,0.000321]
[1633105213289,0.001095,47362.0,47345.0,0.000321]
[1633105213589,0.00128676,47346.0,47345.0,0.000321]
[1633105213787,0.01988676,47346.0,47345.0,0.000321]
[1633105213995,0.01988676,47346.0,47345.0,0.00051411]
[1633105213996,0.02041683,47346.0,47345.0,0.00051411]
[1633105214187,0.11109837,47346.0,47345.0,0.00051411]
[1633105214489,0.84758248,47346.0,47345.0,0.00051411]
[1633105214686,1.31318248,47346.0,47345.0,0.00051411]
[1633105214887,1.31318248,47346.0,47331.0,0.07941]
[1633105215087,0.80127211,47332.0,47331.0,0.07941]
[1633105215288,1.07785129,47332.0,47331.0,0.16933576]
[1633105215488,1.07785129,47332.0,47331.0,0.07957903]
[1633105215687,0.57785129,47332.0,47331.0,0.07957903]
[1633105215888,0.27785129,47332.0,47331.0,0.07957903]
[1633105217690,0.57785129,47332.0,47331.0,0.07957903]
[1633105218292,0.27785129,47332.0,47331.0,0.07957903]
[1633105218491,0.01987211,47332.0,47331.0,0.07957903]
[1633105218691,0.01987211,47332.0,47331.0,0.29336765]
[1633105218887,0.24001242,47332.0,47331.0,0.29336765]
[1633105219888,0.01987211,47332.0,47331.0,0.29336765]
[1633105220290,0.01987211,47332.0,47331.0,0.07957903]
[1633105221293,0.01987211,47332.0,47331.0,0.30190152]
[1633105222494,0.51987211,47332.0,47331.0,0.07957903]
[1633105225495,0.51987211,47332.0,47331.0,0.2755653]
[1633105226095,0.51955111,47332.0,47331.0,0.2755653]
[1633105226498,0.51988688,47332.0,47331.0,0.07957903]
[1633105227296,0.83688688,47332.0,47331.0,0.07957903]
[1633105227695,0.83688688,47332.0,47331.0,0.26950584]
[1633105228298,0.51988688,47332.0,47331.0,0.26950584]
[1633105229501,0.86691858,47332.0,47331.0,0.26950584]
[1633105230102,0.86691858,47332.0,47331.0,0.24255526]
[1633105230302,0.86691858,47332.0,47331.0,2.56528095]
[1633105231501,0.86691858,47332.0,47331.0,0.24255526]
[1633105232502,0.86691858,47332.0,47331.0,0.05262845]
[1633105232702,0.51988688,47332.0,47331.0,0.05262845]
[1633105234605,0.51988688,47332.0,47330.0,15.88950163]
[1633105236005,0.5186,47332.0,47330.0,15.88950163]
[1633105239010,0.5186,47332.0,47330.0,15.70362479]
[1633105239812,0.5186,47332.0,47330.0,15.69295017]
[1633105242413,0.317019,47331.0,47330.0,15.69295017]
[1633105247077,0.35933674,47331.0,47330.0,15.69295017]
[1633105247280,0.46494642,47331.0,47330.0,15.69295017]
[1633105247479,0.37918426,47331.0,47330.0,15.69295017]
[1633105248478,0.62918426,47331.0,47330.0,15.69295017]
[1633105249087,0.83379181,47331.0,47330.0,15.69295017]
[1633105250687,0.62918426,47331.0,47330.0,15.69295017]
[1633105251688,0.83421228,47331.0,47330.0,15.69295017]
[1633105252286,0.62918426,47331.0,47330.0,15.69295017]
[1633105257392,0.58686652,47331.0,47330.0,15.69295017]
[1633105257597,0.62918426,47331.0,47330.0,15.69295017]
[1633105258993,0.97225187,47331.0,47330.0,15.69295017]
[1633105259793,0.97225187,47331.0,47330.0,15.79295017]
[1633105260595,0.62918426,47331.0,47330.0,15.79295017]
[1633105260798,0.62918426,47331.0,47330.0,15.91475253]
[1633105260998,0.25,47331.0,47330.0,16.13918449]
[1633105261196,0.25,47331.0,47330.0,16.01738213]
[1633105261398,0.25,47331.0,47330.0,15.79418213]
[1633105261598,0.5,47338.0,47330.0,15.79418213]
[1633105261799,0.5,47338.0,47337.0,0.08651111]
[1633105261997,0.5,47338.0,47330.0,15.79418213]
[1633105262201,0.50006036,47338.0,47330.0,15.79450313]
[1633105263000,0.50006036,47338.0,47334.0,0.0732694]
[1633105263902,0.316969,47335.0,47334.0,0.0732694]
[1633105264902,0.50006036,47338.0,47334.0,0.0732694]
[1633105265104,0.50006036,47338.0,47330.0,15.79450313]
[1633105265310,0.50006036,47338.0,47330.0,15.79327117]
[1633105265311,0.00120682,47331.0,47330.0,15.79327117]
[1633105265504,0.31980682,47331.0,47330.0,15.79327117]
[1633105265705,0.57474658,47331.0,47330.0,15.79327117]
[1633105265905,0.89179358,47331.0,47330.0,15.79327117]
[1633105266105,1.32170544,47331.0,47330.0,15.79327117]
[1633105266775,1.45775544,47331.0,47330.0,15.79327117]
[1633105268109,3.07775544,47331.0,47330.0,15.64620669]
[1633105268309,3.60499928,47331.0,47330.0,14.94148937]
[1633105268509,3.83147509,47331.0,47330.0,14.94148937]
[1633105268709,3.83147509,47331.0,47330.0,14.30550746]
[1633105268710,3.60495863,47331.0,47330.0,14.30550746]
[1633105268910,3.60495863,47331.0,47330.0,9.39702985]
[1633105268911,4.83747106,47331.0,47330.0,9.39702985]
[1633105269112,4.83847106,47331.0,47330.0,7.17256329]
[1633105269312,9.28163149,47331.0,47330.0,6.11626683]
[1633105269509,9.28163149,47331.0,47330.0,5.48278684]
[1633105269510,9.41469403,47331.0,47330.0,5.48278684]
[1633105269708,9.41469403,47331.0,47330.0,5.05986284]
[1633105269709,9.29263828,47331.0,47330.0,5.05986284]
[1633105269910,9.29263828,47331.0,47330.0,4.21402784]
[1633105270310,13.56647945,47331.0,47330.0,3.30689631]
[1633105270519,13.56647945,47331.0,47330.0,2.88396931]
[1633105270712,9.29263828,47331.0,47330.0,2.88396931]
[1633105271111,8.29263828,47331.0,47330.0,2.46104731]
[1633105271311,13.56647945,47331.0,47330.0,2.46104731]
[1633105271512,13.56647945,47331.0,47330.0,2.28714731]
[1633105271513,12.56647945,47331.0,47330.0,2.28714731]
[1633105271712,12.56647945,47331.0,47330.0,1.86422231]
[1633105271913,13.06647945,47331.0,47330.0,1.86422231]
[1633105272113,8.79263828,47331.0,47330.0,1.44129431]
[1633105272784,8.79263828,47331.0,47330.0,0.93956131]
[1633105272912,12.83509001,47331.0,47330.0,0.93956131]
[1633105273513,8.56124884,47331.0,47330.0,0.93956131]
[1633105273713,8.56124884,47331.0,47330.0,0.51663231]
[1633105273913,12.83509001,47331.0,47330.0,0.51663231]
[1633105274114,0.511474,47322.0,47313.0,0.3409023]
[1633105274314,0.511474,47322.0,47311.0,0.01]
[1633105274315,0.00125231,47312.0,47311.0,0.01]
[1633105274514,0.01985231,47312.0,47311.0,0.01]
[1633105275115,0.01985231,47312.0,47311.0,0.18720105]
[1633105275514,0.01985231,47312.0,47311.0,0.01]
[1633105275783,0.02166492,47312.0,47311.0,0.01]
[1633105276717,0.02113485,47312.0,47311.0,0.01]
[1633105277317,0.02166492,47312.0,47311.0,0.01]
[1633105277917,0.02113485,47312.0,47311.0,0.01]
[1633105278783,1.14113485,47312.0,47311.0,0.01]
[1633105278919,1.34113485,47312.0,47311.0,0.01]
[1633105279319,1.14113485,47312.0,47311.0,0.01]
[1633105279720,0.02113485,47312.0,47311.0,0.01]
[1633105280324,0.02166492,47312.0,47311.0,0.01]
[1633105281923,0.01082134,47312.0,47311.0,0.01]
[1633105282323,0.01029127,47312.0,47311.0,0.01]
[1633105282923,0.03235811,47312.0,47311.0,0.01]
[1633105283325,0.03110169,47312.0,47311.0,0.01]
[1633105287530,0.03163176,47312.0,47311.0,0.01]
[1633105287931,0.03110169,47312.0,47311.0,0.01]
[1633105288133,0.03110169,47312.0,47308.0,0.21890527]
[1633105288333,0.07341943,47312.0,47308.0,0.21890527]
[1633105288535,0.05135259,47312.0,47310.0,0.2232]
[1633105288736,0.05135259,47312.0,47308.0,0.21890527]
[1633105289331,0.36850259,47312.0,47308.0,0.21890527]
[1633105289733,0.36850259,47312.0,47311.0,2.55122961]
[1633105289734,0.05135259,47312.0,47311.0,2.55122961]
[1633105289933,0.5,47320.0,47319.0,1.38479584]
[1633105290133,0.5,47320.0,47312.0,0.05264508]
[1633105290333,0.3,47317.0,47312.0,0.05264508]
[1633105290805,0.3,47317.0,47316.0,0.55018115]
[1633105291133,0.3,47317.0,47316.0,0.00018115]
[1633105291735,0.04231774,47319.0,47316.0,0.00018115]
[1633105292136,0.04231774,47319.0,47318.0,0.00015699]
[1633105296341,0.56091774,47328.0,47318.0,0.00015699]
[1633105296546,0.13605,47327.0,47319.0,0.00121509]
[1633105296806,0.13605,47327.0,47326.0,6.037e-05]
[1633105296941,1.253124,47327.0,47326.0,6.037e-05]
[1633105297338,1.32952041,47327.0,47326.0,6.037e-05]
[1633105298141,1.32952041,47327.0,47319.0,0.00121509]
[1633105298343,0.317074,47323.0,47319.0,0.00121509]
[1633105299149,0.0186,47322.0,47319.0,0.00121509]
[1633105299544,0.0186,47322.0,47321.0,6.038e-05]
[1633105299947,0.06091774,47322.0,47321.0,6.038e-05]
[1633105300345,0.56091774,47322.0,47321.0,6.038e-05]
[1633105300549,0.69696774,47322.0,47321.0,6.038e-05]
[1633105305652,0.65465,47322.0,47321.0,6.038e-05]
[1633105307050,0.5186,47322.0,47321.0,6.038e-05]
[1633105307250,0.65465,47322.0,47321.0,6.038e-05]
[1633105307851,0.69696774,47322.0,47321.0,6.038e-05]
[1633105310253,0.13605,47321.0,47315.0,0.27425571]
[1633105310451,0.31713,47318.0,47313.0,0.24259156]
[1633105310651,0.5,47314.0,47313.0,0.24259156]
[1633105311051,0.5,47314.0,47313.0,0.24268818]
[1633105311253,0.5,47314.0,47313.0,9.662e-05]
[1633105311453,0.81713,47314.0,47313.0,9.662e-05]
[1633105313256,0.83573,47314.0,47313.0,9.662e-05]
[1633105314656,0.835735,47314.0,47313.0,9.662e-05]
[1633105321725,0.5186,47314.0,47313.0,9.662e-05]
[1633105321924,0.56091774,47314.0,47313.0,9.662e-05]
[1633105325928,0.56091774,47314.0,47313.0,0.30779917]
[1633105326130,0.56091774,47314.0,47313.0,0.00138129]
[1633105326937,0.56091774,47314.0,47313.0,0.09651692]
[1633105327337,0.56091774,47314.0,47313.0,0.00138129]
[1633105328342,0.56069554,47314.0,47313.0,0.4275]
[1633105328537,0.56069554,47314.0,47313.0,0.0775]
[1633105328937,0.56069554,47314.0,47313.0,9.662e-05]
[1633105333141,0.89297201,47314.0,47313.0,9.662e-05]
[1633105333741,0.89420323,47314.0,47313.0,9.662e-05]
[1633105333942,1.0307833,47314.0,47313.0,9.662e-05]
[1633105334742,2.3507833,47314.0,47313.0,9.662e-05]
[1633105334943,2.09310338,47314.0,47313.0,9.662e-05]
[1633105336044,2.59310338,47314.0,47313.0,9.662e-05]
[1633105338246,3.09310338,47314.0,47313.0,9.662e-05]
[1633105338445,3.09257331,47314.0,47313.0,9.662e-05]
[1633105339444,3.09310338,47314.0,47313.0,9.662e-05]
[1633105339846,2.59310338,47314.0,47313.0,9.662e-05]
[1633105340050,0.13605,47313.0,47307.0,0.0002]
[1633105340248,0.00126496,47308.0,47307.0,0.0002]
[1633105340448,0.3088053,47308.0,47307.0,0.0002]
[1633105340648,0.31866242,47308.0,47307.0,0.00027247]
[1633105340850,0.06274671,47308.0,47307.0,0.00027247]
[1633105341249,0.06144781,47308.0,47307.0,0.00027247]
[1633105341650,0.81144781,47308.0,47307.0,0.00027247]
[1633105342551,0.56144781,47308.0,47306.0,7.97090882]
[1633105342750,0.3,47307.0,47306.0,7.97090882]
[1633105342951,0.3186,47307.0,47306.0,7.97090882]
[1633105347355,0.3186,47307.0,47306.0,8.27090882]
[1633105347829,0.3186,47307.0,47306.0,7.97090882]
[1633105347955,0.3186,47307.0,47306.0,7.97218146]
[1633105347956,0.0186,47307.0,47306.0,7.97218146]
[1633105348157,0.04231774,47310.0,47307.0,0.12354634]
[1633105348358,0.04231774,47310.0,47309.0,0.00123051]
[1633105348558,0.5,47313.0,47309.0,0.00123051]
[1633105348755,0.5,47313.0,47311.0,0.0800815]
[1633105350157,0.5,47313.0,47311.0,0.3971895]
[1633105350356,0.5,47313.0,47311.0,0.0800815]
[1633105350755,0.5,47313.0,47310.0,0.63422719]
[1633105350954,0.5,47313.0,47310.0,0.42283219]
[1633105352358,0.5,47313.0,47312.0,1.25126008]
[1633105352555,0.5,47313.0,47312.0,1.37975008]